[Event "WCCC G10 2019"]
[Site "Weifang"]
[Date "2019.08.21"]
[Round "1.10"]
[White "Yuan, Rui"]
[Black "Rouda Essa, Alserkal"]
[Result "1-0"]
[ECO "E94"]
[WhiteElo "1008"]
[BlackElo "1601"]
[Annotator "NA"]
[PlyCount "119"]
[EventDate "2019.08.21"]
[EventType "swiss"]
[EventCountry "CHN"]
[SourceTitle "playchess.com"]
[Source "ChessBase"]
[SourceQuality "1"]
[TimeControl "40/5400+30:1800+30"]

1. d4 {[%emt 0:00:00]} Nf6 {[%emt 0:00:00]} 2. c4 {[%emt 0:00:00]} g6 {[%emt 0:00:00]} 3. Nc3 {[%emt 0:00:00]} Bg7 {[%emt 0:00:00]} 4. e4 {[%emt 0:00:02]} d6 {[%emt 0:00:00]} 5. Nf3 {[%emt 0:00:08]} O-O {[%emt 0:00:07]} 6. Be2 {[%emt 0:00:07]} Nbd7 {[%emt 0:01:42]} 7. O-O {[%emt 0:00:39]} e5 {[%emt 0:00:18]} 8. d5 {[%emt 0:00:49]} Nc5 {[%emt 0:00:27]} 9. Qc2 {[%emt 0:00:36]} a5 {[%emt 0:00:11]} 10. Be3 {[%emt 0:00:46]} Ne8 {[%emt 0:03:45]} 11. a3 {[%emt 0:02:19]} a4 {[%emt 0:00:11]} 12. Bxc5 {[%emt 0:00:21]} dxc5 {[%emt 0:00:07]} 13. Nxa4 {[%emt 0:00:20]} Qe7 {[%emt 0:02:29]} 14. Nc3 {[%emt 0:01:25]} f5 {[%emt 0:01:19]} 15. Qd2 {[%emt 0:02:23]} f4 {[%emt 0:00:56]} 16. Ne1 {[%emt 0:01:16]} g5 {[%emt 0:00:58]} 17. Qd1 {[%emt 0:01:05]} Nf6 {[%emt 0:00:48]} 18. f3 {[%emt 0:01:07]} h5 {[%emt 0:00:30]} 19. Nd3 {[%emt 0:01:04]} Rf7 {[%emt 0:04:37]} 20. Nf2 {[%emt 0:01:30]} Bf8 {[%emt 0:00:22]} 21. h3 {[%emt 0:00:58]} Rg7 {[%emt 0:01:33]} 22. a4 {[%emt 0:02:53]} Nh7 {[%emt 0:04:06]} 23. Nb5 {[%emt 0:03:50]} Ra6 {[%emt 0:01:21]} 24. Qd2 {[%emt 0:03:32]} Rag6 {[%emt 0:18:03]} 25. Qc3 {[%emt 0:01:15]} Qe8 {[%emt 0:08:26]} 26. Qa5 {[%emt 0:01:36]} Nf6 {[%emt 0:03:34]} 27. Qa8 {[%emt 0:02:16]} Rd7 {[%emt 0:34:20]} 28. Nd3 {[%emt 0:02:17]} Bd6 {[%emt 0:04:14]} 29. Na7 {[%emt 0:01:04]} Rd8 {[%emt 0:01:00]} 30. Nxc8 {[%emt 0:00:08]} Rxc8 {[%emt 0:00:09]} 31. Qxb7 {[%emt 0:00:12]} g4 {[%emt 0:01:25]} 32. Kh2 {[%emt 0:02:23]} g3+ {[%emt 0:08:28]} 33. Kg1 {[%emt 0:00:14]} Qf8 {[%emt 0:00:13]} 34. a5 {[%emt 0:00:41]} Nh7 {[%emt 0:00:43]} 35. a6 {[%emt 0:00:44]} Ra8 {[%emt 0:00:36]} 36. a7 {[%emt 0:00:24]} Ng5 {[%emt 0:00:24]} 37. Ra5 {[%emt 0:00:21]} Rg7 {[%emt 0:00:36]} 38. Rfa1 {[%emt 0:00:29]} Rd7 {[%emt 0:00:28]} 39. Qc6 {[%emt 0:00:43]} Rdd8 {[%emt 0:00:18]} 40. Nxc5 {[%emt 0:00:09]} Bxc5+ {[%emt 0:00:40]} 41. Qxc5 {[%emt 0:30:18]} Qg7 {[%emt 0:30:27]} 42. h4 {[%emt 0:00:19]} Nh7 {[%emt 0:00:29]} 43. Rb5 {[%emt 0:00:11]} Qf6 {[%emt 0:00:27]} 44. Qxc7 {[%emt 0:01:12]} Qxh4 {[%emt 0:00:21]} 45. Qb6 {[%emt 0:00:30]} Nf8 {[%emt 0:00:00]} 46. Kf1 {[%emt 0:00:00]} Kh8 {[%emt 0:00:00]} 47. Qg1 {[%emt 0:00:00]} Qe7 {[%emt 0:00:00]} 48. Ra6 {[%emt 0:00:00]} Kg7 {[%emt 0:00:00]} 49. Qb6 {[%emt 0:00:00]} Qh4 {[%emt 0:00:00]} 50. Ke1 {[%emt 0:00:00]} Qg5 {[%emt 0:00:00]} 51. Qc6 {[%emt 0:00:00]} Nd7 {[%emt 0:00:00]} 52. Rb7 {[%emt 0:00:00]} Qe7 {[%emt 0:00:00]} 53. Qe6 {[%emt 0:00:00]} Qf7 {[%emt 0:00:00]} 54. Rd6 {[%emt 0:00:00]} Qxe6 {[%emt 0:00:00]} 55. dxe6 {[%emt 0:00:00]} Kf8 {[%emt 0:00:00]} 56. Rdxd7 {[%emt 0:00:00]} Rxd7 {[%emt 0:00:00]} 57. Rxd7 {[%emt 0:00:00]} h4 {[%emt 0:00:00]} 58. Rb7 {[%emt 0:00:00]} h3 {[%emt 0:00:00]} 59. gxh3 {[%emt 0:00:00]} g2 {[%emt 0:00:08]} 60. Kf2 {[%emt 0:00:05]} 1-0

[Event "WCCC G10 2019"]
[Site "Weifang"]
[Date "2019.08.22"]
[Round "2.1"]
[White "Liu, Xinrui"]
[Black "Li, Rachael"]
[Result "0-1"]
[ECO "A45"]
[WhiteElo "1303"]
[BlackElo "1911"]
[Annotator "NA"]
[PlyCount "86"]
[EventDate "2019.08.21"]
[EventType "swiss"]
[EventCountry "CHN"]
[SourceTitle "playchess.com"]
[Source "ChessBase"]
[SourceQuality "1"]
[TimeControl "40/5400+30:1800+30"]

1. d4 {[%emt 0:00:00]} Nf6 {[%emt 0:00:00]} 2. Bf4 {[%emt 0:00:00]} c5 {[%emt 0:00:00]} 3. e3 {[%emt 0:00:00]} Qb6 {[%emt 0:00:00]} 4. b3 {[%emt 0:00:26]} g6 {[%emt 0:00:00]} 5. Nf3 {[%emt 0:00:51]} Bg7 {[%emt 0:00:03]} 6. Nc3 {[%emt 0:08:08]} O-O {[%emt 0:01:54]} 7. Be2 {[%emt 0:05:41]} cxd4 {[%emt 0:10:50]} 8. exd4 {[%emt 0:02:31]} d6 {[%emt 0:01:39]} 9. O-O {[%emt 0:01:28]} Bf5 {[%emt 0:01:38]} 10. Bd3 {[%emt 0:06:27]} Bxd3 {[%emt 0:10:01]} 11. Qxd3 {[%emt 0:00:15]} Nc6 {[%emt 0:00:09]} 12. Rfe1 {[%emt 0:11:22]} Rac8 {[%emt 0:04:42]} 13. Na4 {[%emt 0:07:42]} Qc7 {[%emt 0:05:54]} 14. c3 {[%emt 0:02:33]} Nd5 {[%emt 0:05:02]} 15. Bd2 {[%emt 0:04:37]} a6 {[%emt 0:06:08]} 16. c4 {[%emt 0:06:40]} Ndb4 {[%emt 0:00:48]} 17. Bxb4 {[%emt 0:00:12]} Nxb4 {[%emt 0:00:05]} 18. Qd2 {[%emt 0:00:22]} Nc6 {[%emt 0:00:12]} 19. Rac1 {[%emt 0:02:17]} e5 {[%emt 0:10:06]} 20. dxe5 {[%emt 0:01:00]} dxe5 {[%emt 0:00:13]} 21. Qe3 {[%emt 0:03:01]} Rcd8 {[%emt 0:04:17]} 22. Rcd1 {[%emt 0:02:33]} Rxd1 {[%emt 0:00:35]} 23. Rxd1 {[%emt 0:00:09]} Rd8 {[%emt 0:00:09]} 24. Rxd8+ {[%emt 0:03:29]} Qxd8 {[%emt 0:00:47]} 25. Qd2 {[%emt 0:00:44]} Nd4 {[%emt 0:02:37]} 26. Nxd4 {[%emt 0:03:24]} exd4 {[%emt 0:00:24]} 27. g3 {[%emt 0:00:33]} Qe7 {[%emt 0:01:51]} 28. Kf1 {[%emt 0:04:37]} Qe4 {[%emt 0:02:38]} 29. Kg1 {[%emt 0:00:48]} h5 {[%emt 0:02:48]} 30. Nc5 {[%emt 0:04:13]} Qc6 {[%emt 0:01:14]} 31. Na4 {[%emt 0:01:56]} h4 {[%emt 0:01:07]} 32. Qd3 {[%emt 0:00:47]} Qd6 {[%emt 0:04:17]} 33. Kg2 {[%emt 0:02:27]} hxg3 {[%emt 0:00:43]} 34. hxg3 {[%emt 0:00:07]} Qa3 {[%emt 0:01:07]} 35. Qd2 {[%emt 0:00:23]} b5 {[%emt 0:00:24]} 36. cxb5 {[%emt 0:00:08]} axb5 {[%emt 0:00:08]} 37. Nb6 {[%emt 0:01:07]} Qd6 {[%emt 0:00:45]} 38. Qa5 {[%emt 0:01:00]} d3 {[%emt 0:01:00]} 39. Qa8+ {[%emt 0:02:05]} Kh7 {[%emt 0:00:38]} 40. Qd5 {[%emt 0:00:59]} Qxb6 {[%emt 0:00:56]} 41. Qxd3 {[%emt 0:30:07]} b4 {[%emt 0:30:18]} 42. Qc4 {[%emt 0:00:18]} Qb7+ {[%emt 0:00:09]} 43. Kg1 {[%emt 0:00:11]} Bc3 {[%emt 0:00:05]} 0-1

[Event "WCCC G10 2019"]
[Site "Weifang"]
[Date "2019.08.22"]
[Round "2.2"]
[White "Lee, Alice"]
[Black "Sachi Jain"]
[Result "1-0"]
[ECO "D36"]
[WhiteElo "1822"]
[BlackElo "1282"]
[Annotator "NA"]
[PlyCount "87"]
[EventDate "2019.08.21"]
[EventType "swiss"]
[EventCountry "CHN"]
[SourceTitle "playchess.com"]
[Source "ChessBase"]
[SourceQuality "1"]
[TimeControl "40/5400+30:1800+30"]

1. d4 {[%emt 0:00:00]} Nf6 {[%emt 0:00:00]} 2. c4 {[%emt 0:00:00]} e6 {[%emt 0:00:00]} 3. Nc3 {[%emt 0:00:03]} d5 {[%emt 0:00:40]} 4. cxd5 {[%emt 0:00:42]} exd5 {[%emt 0:00:25]} 5. Bg5 {[%emt 0:00:30]} Be7 {[%emt 0:00:40]} 6. e3 {[%emt 0:00:46]} Nbd7 {[%emt 0:01:19]} 7. Bd3 {[%emt 0:01:20]} c6 {[%emt 0:00:27]} 8. Nge2 {[%emt 0:00:54]} O-O {[%emt 0:01:22]} 9. O-O {[%emt 0:01:31]} Re8 {[%emt 0:01:27]} 10. f3 {[%emt 0:01:30]} Nf8 {[%emt 0:04:17]} 11. Qc2 {[%emt 0:01:58]} N6d7 {[%emt 0:06:46]} 12. Bxe7 {[%emt 0:04:17]} Qxe7 {[%emt 0:00:17]} 13. e4 {[%emt 0:01:58]} Nf6 {[%emt 0:03:58]} 14. e5 {[%emt 0:03:39]} N6d7 {[%emt 0:02:23]} 15. f4 {[%emt 0:03:20]} f6 {[%emt 0:03:06]} 16. Ng3 {[%emt 0:03:45]} Nb6 {[%emt 0:02:37]} 17. Rae1 {[%emt 0:03:51]} Bd7 {[%emt 0:03:43]} 18. e6 {[%emt 0:04:54]} Bxe6 {[%emt 0:09:04]} 19. f5 {[%emt 0:01:49]} Qb4 {[%emt 0:03:27]} 20. fxe6 {[%emt 0:01:38]} Qxd4+ {[%emt 0:00:10]} 21. Kh1 {[%emt 0:02:20]} Qc5 {[%emt 0:01:50]} 22. Bf5 {[%emt 0:07:26]} Nc4 {[%emt 0:04:01]} 23. Nxd5 {[%emt 0:13:06]} cxd5 {[%emt 0:03:15]} 24. b3 {[%emt 0:00:40]} b5 {[%emt 0:00:20]} 25. bxc4 {[%emt 0:01:24]} bxc4 {[%emt 0:01:04]} 26. Bg4 {[%emt 0:05:10]} Rab8 {[%emt 0:04:15]} 27. Nf5 {[%emt 0:05:10]} Rb6 {[%emt 0:03:51]} 28. e7 {[%emt 0:02:31]} Ng6 {[%emt 0:01:22]} 29. Bh5 {[%emt 0:01:05]} c3 {[%emt 0:06:48]} 30. Nh6+ {[%emt 0:06:25]} gxh6 {[%emt 0:00:42]} 31. Bxg6 {[%emt 0:00:31]} Rxe7 {[%emt 0:00:28]} 32. Bxh7+ {[%emt 0:00:49]} Rxh7 {[%emt 0:00:56]} 33. Qg6+ {[%emt 0:00:33]} Rg7 {[%emt 0:01:06]} 34. Re8+ {[%emt 0:00:26]} Qf8 {[%emt 0:00:09]} 35. Rxf8+ {[%emt 0:00:36]} Kxf8 {[%emt 0:00:04]} 36. Qd3 {[%emt 0:01:09]} Rc7 {[%emt 0:01:02]} 37. Qxd5 {[%emt 0:00:40]} Rcc6 {[%emt 0:01:41]} 38. Qd8+ {[%emt 0:01:43]} Kg7 {[%emt 0:00:08]} 39. Qd7+ {[%emt 0:00:36]} Kg6 {[%emt 0:00:58]} 40. h4 {[%emt 0:00:52]} c2 {[%emt 0:00:40]} 41. h5+ {[%emt 0:30:38]} Kxh5 {[%emt 0:30:30]} 42. Qf5+ {[%emt 0:00:20]} Kh4 {[%emt 0:00:11]} 43. Rf4+ {[%emt 0:00:14]} Kg3 {[%emt 0:00:09]} 44. Qg4# {[%emt 0:00:07]} 1-0

[Event "WCCC G10 2019"]
[Site "Weifang"]
[Date "2019.08.22"]
[Round "2.3"]
[White "Mgeladze, Kesaria"]
[Black "Shukhman, Anna"]
[Result "0-1"]
[ECO "B22"]
[WhiteElo "1303"]
[BlackElo "1806"]
[Annotator "NA"]
[PlyCount "104"]
[EventDate "2019.08.21"]
[EventType "swiss"]
[EventCountry "CHN"]
[SourceTitle "playchess.com"]
[Source "ChessBase"]
[SourceQuality "1"]
[TimeControl "40/5400+30:1800+30"]

1. e4 {[%emt 0:00:00]} c5 {[%emt 0:00:00]} 2. c3 {[%emt 0:00:00]} Nf6 {[%emt 0:00:00]} 3. e5 {[%emt 0:00:00]} Nd5 {[%emt 0:00:00]} 4. d4 {[%emt 0:00:00]} cxd4 {[%emt 0:00:00]} 5. Qxd4 {[%emt 0:00:00]} e6 {[%emt 0:00:00]} 6. Nf3 {[%emt 0:00:05]} Nc6 {[%emt 0:00:00]} 7. Qe4 {[%emt 0:00:06]} f5 {[%emt 0:00:01]} 8. exf6 {[%emt 0:00:04]} Nxf6 {[%emt 0:00:04]} 9. Qh4 {[%emt 0:00:07]} e5 {[%emt 0:00:36]} 10. Bg5 {[%emt 0:02:19]} d5 {[%emt 0:01:34]} 11. Bb5 {[%emt 0:02:30]} Bd6 {[%emt 0:00:36]} 12. O-O {[%emt 0:01:04]} O-O {[%emt 0:00:16]} 13. Rd1 {[%emt 0:05:30]} Be6 {[%emt 0:03:41]} 14. Nbd2 {[%emt 0:05:12]} h6 {[%emt 0:04:06]} 15. Bxf6 {[%emt 0:00:43]} Qxf6 {[%emt 0:00:18]} 16. Qxf6 {[%emt 0:00:34]} gxf6 {[%emt 0:00:10]} 17. Ne4 {[%emt 0:05:11]} Be7 {[%emt 0:00:37]} 18. Ng3 {[%emt 0:00:40]} Kf7 {[%emt 0:02:12]} 19. Nh4 {[%emt 0:02:42]} Bc5 {[%emt 0:01:17]} 20. Ngf5 {[%emt 0:16:50]} Ne7 {[%emt 0:01:17]} 21. Nxe7 {[%emt 0:00:20]} Bxe7 {[%emt 0:00:26]} 22. Nf3 {[%emt 0:05:21]} Rac8 {[%emt 0:01:11]} 23. Ba4 {[%emt 0:04:29]} Bc5 {[%emt 0:02:47]} 24. Rd2 {[%emt 0:28:54]} Rfd8 {[%emt 0:01:19]} 25. Rad1 {[%emt 0:01:54]} Rd6 {[%emt 0:01:22]} 26. Bb3 {[%emt 0:02:46]} Rcd8 {[%emt 0:00:19]} 27. Kf1 {[%emt 0:02:56]} Ke7 {[%emt 0:01:55]} 28. Ke2 {[%emt 0:01:50]} a5 {[%emt 0:01:11]} 29. h3 {[%emt 0:01:17]} b5 {[%emt 0:04:00]} 30. a3 {[%emt 0:00:24]} d4 {[%emt 0:02:42]} 31. Bxe6 {[%emt 0:07:44]} d3+ {[%emt 0:04:08]} 32. Rxd3 {[%emt 0:01:06]} Rxd3 {[%emt 0:00:09]} 33. Rxd3 {[%emt 0:00:08]} Rxd3 {[%emt 0:00:13]} 34. Kxd3 {[%emt 0:00:06]} Kxe6 {[%emt 0:00:07]} 35. Ke2 {[%emt 0:01:33]} Kd5 {[%emt 0:00:26]} 36. Nd2 {[%emt 0:00:21]} e4 {[%emt 0:00:20]} 37. f3 {[%emt 0:00:58]} f5 {[%emt 0:01:39]} 38. fxe4+ {[%emt 0:00:18]} fxe4 {[%emt 0:00:05]} 39. g4 {[%emt 0:00:23]} a4 {[%emt 0:01:56]} 40. h4 {[%emt 0:01:14]} Be7 {[%emt 0:00:36]} 41. Ke3 {[%emt 0:30:53]} Bxh4 {[%emt 0:30:40]} 42. Nxe4 {[%emt 0:00:03]} Ke5 {[%emt 0:01:37]} 43. Nc5 {[%emt 0:01:07]} Bg5+ {[%emt 0:00:21]} 44. Kd3 {[%emt 0:01:08]} Bc1 {[%emt 0:03:56]} 45. Kc2 {[%emt 0:01:09]} Be3 {[%emt 0:00:23]} 46. Na6 {[%emt 0:00:22]} Kf4 {[%emt 0:03:24]} 47. Nc7 {[%emt 0:00:29]} Kxg4 {[%emt 0:01:16]} 48. Nxb5 {[%emt 0:00:12]} h5 {[%emt 0:00:08]} 49. Nd6 {[%emt 0:00:00]} h4 {[%emt 0:00:00]} 50. Ne4 {[%emt 0:00:00]} h3 {[%emt 0:00:00]} 51. Kd3 {[%emt 0:00:00]} Kf3 {[%emt 0:00:00]} 52. c4 {[%emt 0:00:00]} h2 {[%emt 0:00:00]} 0-1

[Event "WCCC G10 2019"]
[Site "Weifang"]
[Date "2019.08.22"]
[Round "2.4"]
[White "Zhou, Yafei"]
[Black "Feng, Eunice"]
[Result "0-1"]
[ECO "D86"]
[WhiteElo "1757"]
[BlackElo "1280"]
[Annotator "NA"]
[PlyCount "82"]
[EventDate "2019.08.21"]
[EventType "swiss"]
[EventCountry "CHN"]
[SourceTitle "playchess.com"]
[Source "ChessBase"]
[SourceQuality "1"]
[TimeControl "40/5400+30:1800+30"]

1. d4 {[%emt 0:00:00]} Nf6 {[%emt 0:00:00]} 2. c4 {[%emt 0:00:00]} g6 {[%emt 0:00:00]} 3. Nc3 {[%emt 0:00:00]} d5 {[%emt 0:00:00]} 4. cxd5 {[%emt 0:00:00]} Nxd5 {[%emt 0:00:00]} 5. e4 {[%emt 0:00:00]} Nxc3 {[%emt 0:00:01]} 6. bxc3 {[%emt 0:00:01]} Bg7 {[%emt 0:00:09]} 7. Bc4 {[%emt 0:00:03]} c5 {[%emt 0:00:08]} 8. Ne2 {[%emt 0:00:23]} Nc6 {[%emt 0:00:06]} 9. Be3 {[%emt 0:00:05]} cxd4 {[%emt 0:00:06]} 10. cxd4 {[%emt 0:00:14]} b5 {[%emt 0:00:05]} 11. Bd5 {[%emt 0:01:59]} Bd7 {[%emt 0:00:13]} 12. Rc1 {[%emt 0:03:24]} Rc8 {[%emt 0:00:16]} 13. O-O {[%emt 0:02:02]} e6 {[%emt 0:00:30]} 14. Bxc6 {[%emt 0:01:29]} Rxc6 {[%emt 0:00:36]} 15. Rxc6 {[%emt 0:02:07]} Bxc6 {[%emt 0:00:06]} 16. Qc2 {[%emt 0:00:08]} Bb7 {[%emt 0:06:12]} 17. Qc5 {[%emt 0:05:51]} a6 {[%emt 0:00:25]} 18. f3 {[%emt 0:08:08]} Qe7 {[%emt 0:00:46]} 19. Rd1 {[%emt 0:04:03]} f5 {[%emt 0:13:18]} 20. Qb6 {[%emt 0:04:32]} fxe4 {[%emt 0:13:32]} 21. fxe4 {[%emt 0:01:02]} O-O {[%emt 0:00:17]} 22. e5 {[%emt 0:21:54]} Qd7 {[%emt 0:04:01]} 23. Rd2 {[%emt 0:10:35]} Rc8 {[%emt 0:03:18]} 24. Nf4 {[%emt 0:03:15]} Bh6 {[%emt 0:01:35]} 25. Re2 {[%emt 0:06:01]} Rc3 {[%emt 0:08:16]} 26. Qd6 {[%emt 0:09:09]} Qc8 {[%emt 0:05:45]} 27. Bd2 {[%emt 0:06:08]} Rc2 {[%emt 0:03:11]} 28. Kf2 {[%emt 0:05:50]} Bxf4 {[%emt 0:08:41]} 29. Bxf4 {[%emt 0:01:01]} Rxe2+ {[%emt 0:07:30]} 30. Kxe2 {[%emt 0:00:08]} Bxg2 {[%emt 0:00:10]} 31. Kf2 {[%emt 0:02:50]} Bd5 {[%emt 0:02:46]} 32. a3 {[%emt 0:01:18]} Qc2+ {[%emt 0:01:48]} 33. Kg3 {[%emt 0:00:38]} Qg2+ {[%emt 0:03:15]} 34. Kh4 {[%emt 0:00:22]} g5+ {[%emt 0:02:06]} 35. Kh5 {[%emt 0:00:40]} Qh3+ {[%emt 0:00:27]} 36. Kxg5 {[%emt 0:00:32]} Qf5+ {[%emt 0:00:06]} 37. Kh4 {[%emt 0:00:21]} Qxf4+ {[%emt 0:00:06]} 38. Kh3 {[%emt 0:00:07]} Qe3+ {[%emt 0:01:31]} 39. Kh4 {[%emt 0:00:13]} Qxd4+ {[%emt 0:00:09]} 40. Kg5 {[%emt 0:00:07]} Qg1+ {[%emt 0:01:08]} 41. Kf6 {[%emt 0:31:17]} Qg7# {[%emt 0:30:15]} 0-1

[Event "WCCC G10 2019"]
[Site "Weifang"]
[Date "2019.08.22"]
[Round "2.5"]
[White "Zhang, Elena"]
[Black "Chen, Yining"]
[Result "0-1"]
[ECO "A48"]
[WhiteElo "1281"]
[BlackElo "1744"]
[Annotator "NA"]
[PlyCount "80"]
[EventDate "2019.08.21"]
[EventType "swiss"]
[EventCountry "CHN"]
[SourceTitle "playchess.com"]
[Source "ChessBase"]
[SourceQuality "1"]
[TimeControl "40/5400+30:1800+30"]

1. d4 {[%emt 0:00:00]} Nf6 {[%emt 0:00:00]} 2. Nf3 {[%emt 0:00:00]} g6 {[%emt 0:01:19]} 3. Bf4 {[%emt 0:00:14]} Bg7 {[%emt 0:00:36]} 4. e3 {[%emt 0:00:20]} d6 {[%emt 0:01:10]} 5. h3 {[%emt 0:00:25]} O-O {[%emt 0:01:14]} 6. Be2 {[%emt 0:00:35]} Nbd7 {[%emt 0:00:51]} 7. O-O {[%emt 0:00:36]} Qe8 {[%emt 0:01:50]} 8. c4 {[%emt 0:04:06]} e5 {[%emt 0:01:02]} 9. Bh2 {[%emt 0:00:54]} Qe7 {[%emt 0:03:04]} 10. Nc3 {[%emt 0:01:24]} a5 {[%emt 0:03:30]} 11. Qc2 {[%emt 0:04:20]} c6 {[%emt 0:01:57]} 12. dxe5 {[%emt 0:04:24]} Nxe5 {[%emt 0:03:16]} 13. Nxe5 {[%emt 0:02:25]} dxe5 {[%emt 0:00:08]} 14. Rfd1 {[%emt 0:00:54]} Nd7 {[%emt 0:05:01]} 15. Rd2 {[%emt 0:04:19]} Nc5 {[%emt 0:00:47]} 16. Rad1 {[%emt 0:05:08]} Bf5 {[%emt 0:05:48]} 17. e4 {[%emt 0:03:29]} Be6 {[%emt 0:01:46]} 18. Na4 {[%emt 0:04:59]} f5 {[%emt 0:05:57]} 19. Nxc5 {[%emt 0:02:08]} Qxc5 {[%emt 0:00:06]} 20. Qb3 {[%emt 0:11:48]} fxe4 {[%emt 0:09:09]} 21. Bg3 {[%emt 0:01:12]} b5 {[%emt 0:01:46]} 22. Rd6 {[%emt 0:03:11]} a4 {[%emt 0:10:04]} 23. Qc3 {[%emt 0:04:15]} Bf7 {[%emt 0:11:04]} 24. cxb5 {[%emt 0:05:40]} Qxc3 {[%emt 0:00:16]} 25. bxc3 {[%emt 0:01:16]} cxb5 {[%emt 0:01:12]} 26. Bxb5 {[%emt 0:02:50]} Bxa2 {[%emt 0:01:01]} 27. Ra1 {[%emt 0:06:07]} Bb3 {[%emt 0:00:40]} 28. Bc6 {[%emt 0:05:22]} Ra5 {[%emt 0:02:21]} 29. Bxe4 {[%emt 0:01:27]} Rc8 {[%emt 0:01:29]} 30. Rc6 {[%emt 0:03:53]} Rxc6 {[%emt 0:00:48]} 31. Bxc6 {[%emt 0:00:15]} a3 {[%emt 0:00:10]} 32. f4 {[%emt 0:07:58]} exf4 {[%emt 0:00:57]} 33. Bxf4 {[%emt 0:00:54]} Bxc3 {[%emt 0:00:18]} 34. Rf1 {[%emt 0:00:48]} a2 {[%emt 0:00:23]} 35. Bh6 {[%emt 0:01:36]} Rf5 {[%emt 0:00:29]} 36. Rxf5 {[%emt 0:00:21]} a1=Q+ {[%emt 0:00:18]} 37. Kh2 {[%emt 0:00:05]} gxf5 {[%emt 0:00:09]} 38. Bf4 {[%emt 0:00:19]} Bd4 {[%emt 0:00:12]} 39. Bf3 {[%emt 0:00:24]} Qg1+ {[%emt 0:00:07]} 40. Kg3 {[%emt 0:00:06]} Bf2# {[%emt 0:00:06]} 0-1

[Event "WCCC G10 2019"]
[Site "Weifang"]
[Date "2019.08.22"]
[Round "2.6"]
[White "Mou, Iris"]
[Black "Huynh, Phuc Minh Phuong"]
[Result "1-0"]
[ECO "C78"]
[WhiteElo "1669"]
[BlackElo "1254"]
[Annotator "NA"]
[PlyCount "85"]
[EventDate "2019.08.21"]
[EventType "swiss"]
[EventCountry "CHN"]
[SourceTitle "playchess.com"]
[Source "ChessBase"]
[SourceQuality "1"]
[TimeControl "40/5400+30:1800+30"]

1. e4 {[%emt 0:00:00]} e5 {[%emt 0:00:00]} 2. Nf3 {[%emt 0:00:00]} Nc6 {[%emt 0:00:00]} 3. Bb5 {[%emt 0:00:00]} a6 {[%emt 0:00:33]} 4. Ba4 {[%emt 0:00:00]} Nf6 {[%emt 0:00:13]} 5. O-O {[%emt 0:00:07]} b5 {[%emt 0:00:23]} 6. Bb3 {[%emt 0:00:09]} Bc5 {[%emt 0:00:32]} 7. d3 {[%emt 0:00:35]} h6 {[%emt 0:00:42]} 8. Nc3 {[%emt 0:02:44]} d6 {[%emt 0:01:37]} 9. h3 {[%emt 0:00:00]} O-O {[%emt 0:00:24]} 10. a3 {[%emt 0:01:10]} Bb7 {[%emt 0:03:30]} 11. Be3 {[%emt 0:03:07]} Bxe3 {[%emt 0:04:32]} 12. fxe3 {[%emt 0:00:18]} Ne7 {[%emt 0:01:27]} 13. Nh4 {[%emt 0:03:44]} d5 {[%emt 0:08:08]} 14. Rxf6 {[%emt 0:03:31]} gxf6 {[%emt 0:00:15]} 15. Nxd5 {[%emt 0:01:22]} Bxd5 {[%emt 0:00:43]} 16. Bxd5 {[%emt 0:01:12]} Nxd5 {[%emt 0:11:58]} 17. exd5 {[%emt 0:01:19]} f5 {[%emt 0:01:49]} 18. Nxf5 {[%emt 0:01:19]} Qg5 {[%emt 0:00:25]} 19. Qf3 {[%emt 0:04:02]} Kh8 {[%emt 0:02:53]} 20. h4 {[%emt 0:02:25]} Qg6 {[%emt 0:02:13]} 21. Rf1 {[%emt 0:02:45]} Rae8 {[%emt 0:02:11]} 22. e4 {[%emt 0:01:08]} Rg8 {[%emt 0:15:51]} 23. Ne3 {[%emt 0:04:57]} Rg7 {[%emt 0:08:47]} 24. Qf6 {[%emt 0:06:50]} Kh7 {[%emt 0:11:05]} 25. g4 {[%emt 0:04:31]} a5 {[%emt 0:07:53]} 26. Kg2 {[%emt 0:02:40]} h5 {[%emt 0:03:04]} 27. g5 {[%emt 0:01:00]} Qxf6 {[%emt 0:00:25]} 28. Rxf6 {[%emt 0:00:13]} Kg8 {[%emt 0:00:38]} 29. Nf5 {[%emt 0:02:02]} Rg6 {[%emt 0:08:52]} 30. Nh6+ {[%emt 0:00:51]} Kh8 {[%emt 0:00:10]} 31. Rxf7 {[%emt 0:02:01]} c6 {[%emt 0:00:53]} 32. Nf5 {[%emt 0:03:41]} cxd5 {[%emt 0:01:07]} 33. exd5 {[%emt 0:01:31]} Rc8 {[%emt 0:02:22]} 34. c3 {[%emt 0:00:57]} Rd8 {[%emt 0:00:21]} 35. d6 {[%emt 0:04:00]} Kg8 {[%emt 0:00:34]} 36. Ra7 {[%emt 0:01:25]} Kf8 {[%emt 0:00:30]} 37. Kf3 {[%emt 0:01:40]} a4 {[%emt 0:00:17]} 38. Ke4 {[%emt 0:00:55]} Re6 {[%emt 0:01:02]} 39. Kd5 {[%emt 0:01:12]} Rg6 {[%emt 0:00:22]} 40. Rh7 {[%emt 0:00:59]} Ke8 {[%emt 0:00:24]} 41. Rxh5 {[%emt 0:31:43]} Kd7 {[%emt 0:30:16]} 42. Rh7+ {[%emt 0:00:22]} Kc8 {[%emt 0:00:09]} 43. Ne7+ {[%emt 0:00:09]} 1-0

[Event "WCCC G10 2019"]
[Site "Weifang"]
[Date "2019.08.22"]
[Round "2.7"]
[White "Sosovickova, Martina"]
[Black "Khamdamova, Afruza"]
[Result "0-1"]
[ECO "C44"]
[WhiteElo "1277"]
[BlackElo "1607"]
[Annotator "NA"]
[PlyCount "48"]
[EventDate "2019.08.21"]
[EventType "swiss"]
[EventCountry "CHN"]
[SourceTitle "playchess.com"]
[Source "ChessBase"]
[SourceQuality "1"]
[TimeControl "40/5400+30:1800+30"]

1. e4 {[%emt 0:00:00]} e5 {[%emt 0:00:00]} 2. Nf3 {[%emt 0:00:00]} Nc6 {[%emt 0:00:00]} 3. c3 {[%emt 0:00:25]} d5 {[%emt 0:00:00]} 4. Qa4 {[%emt 0:00:17]} dxe4 {[%emt 0:15:00]} 5. Nxe5 {[%emt 0:04:51]} Bd6 {[%emt 0:25:20]} 6. Nxc6 {[%emt 0:01:33]} bxc6 {[%emt 0:00:07]} 7. Qxc6+ {[%emt 0:01:41]} Bd7 {[%emt 0:00:05]} 8. Qxe4+ {[%emt 0:00:28]} Ne7 {[%emt 0:00:05]} 9. Bc4 {[%emt 0:06:40]} O-O {[%emt 0:01:50]} 10. O-O {[%emt 0:01:02]} Kh8 {[%emt 0:02:01]} 11. d4 {[%emt 0:04:20]} f5 {[%emt 0:00:49]} 12. Qc2 {[%emt 0:03:39]} f4 {[%emt 0:06:21]} 13. f3 {[%emt 0:01:34]} Nf5 {[%emt 0:01:23]} 14. Qf2 {[%emt 0:04:31]} Qg5 {[%emt 0:12:25]} 15. Bd3 {[%emt 0:13:11]} Ne3 {[%emt 0:10:11]} 16. Re1 {[%emt 0:04:05]} Rae8 {[%emt 0:00:21]} 17. Re2 {[%emt 0:02:40]} Bh3 {[%emt 0:08:09]} 18. Bxe3 {[%emt 0:01:16]} fxe3 {[%emt 0:00:04]} 19. Qf1 {[%emt 0:00:59]} Bg4 {[%emt 0:01:17]} 20. Kh1 {[%emt 0:02:33]} Qh4 {[%emt 0:02:39]} 21. Qg1 {[%emt 0:02:26]} Rxf3 {[%emt 0:07:10]} 22. h3 {[%emt 0:08:01]} Rxh3+ {[%emt 0:00:48]} 23. gxh3 {[%emt 0:00:48]} Qxh3+ {[%emt 0:00:11]} 24. Rh2 {[%emt 0:01:10]} Bf3+ {[%emt 0:01:00]} 0-1